[Event "*** Titled Tuesday Blitz"]
[Site "Chess.com"]
[Date "2019.09.03"]
[Round "5"]
[White "Niclox"]
[Black "nOcHeaTiNgKiD"]
[Result "1-0"]
[WhiteElo "2621"]
[BlackElo "2460"]
[TimeControl "180+2"]
[EndTime "16:02:29 PDT"]
[Termination "Niclox won by resignation"]

1. e4 {[%clk 0:03:01.2]} 1... e5 {[%clk 0:02:58.6]} 2. Qh5 {[%clk 0:03:01.5]}
2... Nc6 {[%clk 0:02:58]} 3. Bc4 {[%clk 0:03:02.1]} 3... g6 {[%clk 0:02:59.1]}
4. Qf3 {[%clk 0:03:02.2]} 4... Nf6 {[%clk 0:02:59]} 5. Ne2 {[%clk 0:03:02.9]}
5... d6 {[%clk 0:02:57.5]} 6. Nbc3 {[%clk 0:03:03.2]} 6... Bg7 {[%clk
0:02:58.1]} 7. d3 {[%clk 0:03:03.6]} 7... h6 {[%clk 0:02:58.4]} 8. h3 {[%clk
0:03:03.8]} 8... Be6 {[%clk 0:02:58.3]} 9. g4 {[%clk 0:03:03.8]} 9... Nd7 {[%clk
0:02:41.7]} 10. Be3 {[%clk 0:02:58.9]} 10... Nb6 {[%clk 0:02:41]} 11. Bxe6
{[%clk 0:02:55.7]} 11... fxe6 {[%clk 0:02:41.5]} 12. O-O-O {[%clk 0:02:57.6]}
12... Qf6 {[%clk 0:02:36.3]} 13. Qg2 {[%clk 0:02:56.4]} 13... Qe7 {[%clk
0:02:26.3]} 14. Rdf1 {[%clk 0:02:40.9]} 14... O-O-O {[%clk 0:02:19.5]} 15. f4
{[%clk 0:02:41.9]} 15... d5 {[%clk 0:02:18.9]} 16. Bxb6 {[%clk 0:02:26.7]} 16...
axb6 {[%clk 0:02:15.2]} 17. exd5 {[%clk 0:02:27.3]} 17... exd5 {[%clk
0:02:16.3]} 18. Nxd5 {[%clk 0:02:26.2]} 18... Qc5 {[%clk 0:02:13.3]} 19. Ndc3
{[%clk 0:02:22.4]} 19... exf4 {[%clk 0:02:07.5]} 20. Rxf4 {[%clk 0:02:22.6]}
20... Bxc3 {[%clk 0:01:57.8]} 21. Nxc3 {[%clk 0:02:20.5]} 21... Nb4 {[%clk
0:01:42.3]} 22. Rc4 {[%clk 0:02:12.9]} 22... Qa5 {[%clk 0:01:42.2]} 23. Qg3
{[%clk 0:02:08]} 23... Nc6 {[%clk 0:01:41.6]} 24. Rf1 {[%clk 0:02:05.1]} 24...
Qe5 {[%clk 0:01:36.6]} 25. Qxe5 {[%clk 0:02:01.5]} 25... Nxe5 {[%clk 0:01:37.2]}
26. Re4 {[%clk 0:02:03.4]} 26... Rhe8 {[%clk 0:01:36.1]} 27. Rfe1 {[%clk
0:02:01]} 1-0

[Event "*** Titled Tuesday Blitz"]
[Site "Chess.com"]
[Date "2019.09.03"]
[Round "5"]
[White "platy3"]
[Black "mitrabhaa"]
[Result "1-0"]
[WhiteElo "2870"]
[BlackElo "2647"]
[TimeControl "180+2"]
[EndTime "16:02:30 PDT"]
[Termination "platy3 won by resignation"]

1. e4 {[%clk 0:03:01.6]} 1... c6 {[%clk 0:03:00.6]} 2. d4 {[%clk 0:03:02]} 2...
d5 {[%clk 0:03:01.1]} 3. e5 {[%clk 0:03:03.5]} 3... Bf5 {[%clk 0:03:01.3]} 4.
Nf3 {[%clk 0:03:05]} 4... e6 {[%clk 0:03:02.3]} 5. Be2 {[%clk 0:03:06.4]} 5...
Ne7 {[%clk 0:02:58.3]} 6. c3 {[%clk 0:03:07.1]} 6... Nd7 {[%clk 0:02:57.2]} 7.
O-O {[%clk 0:03:08.5]} 7... c5 {[%clk 0:02:57.7]} 8. dxc5 {[%clk 0:03:08.6]}
8... Nxc5 {[%clk 0:02:55.1]} 9. Be3 {[%clk 0:03:07.1]} 9... Nc6 {[%clk
0:02:54.1]} 10. Nd4 {[%clk 0:03:03.1]} 10... Bg6 {[%clk 0:02:51.8]} 11. c4
{[%clk 0:02:59.5]} 11... dxc4 {[%clk 0:02:48.9]} 12. Nxc6 {[%clk 0:02:59.2]}
12... bxc6 {[%clk 0:02:47.5]} 13. Qc1 {[%clk 0:02:48.9]} 13... Bd3 {[%clk
0:02:37.1]} 14. Rd1 {[%clk 0:02:40.6]} 14... Qd5 {[%clk 0:02:01.5]} 15. Bf3
{[%clk 0:02:26.7]} 15... Qd7 {[%clk 0:01:59.3]} 16. Na3 {[%clk 0:02:12.9]} 16...
Qc7 {[%clk 0:01:47.8]} 17. Nxc4 {[%clk 0:02:10.3]} 17... Bxc4 {[%clk 0:01:32.2]}
18. Qxc4 {[%clk 0:02:10.2]} 18... Nd7 {[%clk 0:01:33.4]} 19. Rxd7 {[%clk
0:02:00.4]} 19... Kxd7 {[%clk 0:01:33.3]} 20. Rd1+ {[%clk 0:01:59.9]} 20... Kc8
{[%clk 0:01:29.1]} 21. Bxc6 {[%clk 0:02:00.6]} 21... Be7 {[%clk 0:01:29.8]} 22.
Qa6+ {[%clk 0:01:58.7]} 22... Kb8 {[%clk 0:01:30.7]} 23. Qb5+ {[%clk 0:01:53.1]}
23... Kc8 {[%clk 0:01:31.5]} 24. Bd7+ {[%clk 0:01:53.4]} 24... Kd8 {[%clk
0:01:32.6]} 25. Bxe6+ {[%clk 0:01:53.2]} 1-0

[Event "*** Titled Tuesday Blitz"]
[Site "Chess.com"]
[Date "2019.09.03"]
[Round "5"]
[White "iLuusions"]
[Black "Kildepiotr"]
[Result "0-1"]
[WhiteElo "2604"]
[BlackElo "2495"]
[TimeControl "180+2"]
[EndTime "16:02:31 PDT"]
[Termination "Kildepiotr won by resignation"]

1. d4 {[%clk 0:02:59.3]} 1... c5 {[%clk 0:02:57.8]} 2. d5 {[%clk 0:02:59.3]}
2... e5 {[%clk 0:02:58.8]} 3. c4 {[%clk 0:02:59.7]} 3... d6 {[%clk 0:03:00.1]}
4. Nc3 {[%clk 0:03:00.9]} 4... Be7 {[%clk 0:03:01.4]} 5. e4 {[%clk 0:03:02.2]}
5... Bg5 {[%clk 0:03:02.4]} 6. Qa4+ {[%clk 0:02:51.3]} 6... Bd7 {[%clk
0:03:00.6]} 7. Qb3 {[%clk 0:02:51.2]} 7... b6 {[%clk 0:02:55.8]} 8. Bxg5 {[%clk
0:02:37.4]} 8... Qxg5 {[%clk 0:02:55.8]} 9. Nb5 {[%clk 0:02:39]} 9... Bxb5
{[%clk 0:02:52.9]} 10. Qxb5+ {[%clk 0:02:38.7]} 10... Kd8 {[%clk 0:02:47.4]} 11.
a4 {[%clk 0:02:30.6]} 11... Nd7 {[%clk 0:02:28.1]} 12. Qc6 {[%clk 0:02:27.5]}
12... Rc8 {[%clk 0:02:25]} 13. Qxd6 {[%clk 0:02:26.3]} 13... Nf6 {[%clk
0:02:20.7]} 14. g3 {[%clk 0:01:04.2]} 14... Nxe4 {[%clk 0:02:05.7]} 15. Nf3
{[%clk 0:00:49]} 15... Qf5 {[%clk 0:01:59.3]} 16. Bh3 {[%clk 0:00:46.5]} 16...
Nxd6 {[%clk 0:01:49.6]} 0-1

[Event "*** Titled Tuesday Blitz"]
[Site "Chess.com"]
[Date "2019.09.03"]
[Round "5"]
[White "mortngabriel"]
[Black "Iyael"]
[Result "1-0"]
[WhiteElo "2312"]
[BlackElo "2038"]
[TimeControl "180+2"]
[EndTime "16:02:49 PDT"]
[Termination "mortngabriel won by resignation"]

1. e4 {[%clk 0:03:01.9]} 1... c5 {[%clk 0:02:59.7]} 2. Nf3 {[%clk 0:03:02.7]}
2... Nc6 {[%clk 0:03:00.2]} 3. d4 {[%clk 0:03:00.9]} 3... cxd4 {[%clk
0:03:01.1]} 4. Nxd4 {[%clk 0:03:02.8]} 4... Nf6 {[%clk 0:03:02.3]} 5. Nc3 {[%clk
0:03:04.2]} 5... e5 {[%clk 0:03:03.4]} 6. Ndb5 {[%clk 0:03:05.8]} 6... d6 {[%clk
0:03:04.6]} 7. Bg5 {[%clk 0:03:07.4]} 7... a6 {[%clk 0:03:05.1]} 8. Na3 {[%clk
0:03:09.1]} 8... b5 {[%clk 0:03:06.5]} 9. Nd5 {[%clk 0:03:10.6]} 9... Be7 {[%clk
0:03:07.9]} 10. Bxf6 {[%clk 0:03:12.2]} 10... Bxf6 {[%clk 0:03:09]} 11. c4
{[%clk 0:03:14.1]} 11... b4 {[%clk 0:03:07.6]} 12. Nc2 {[%clk 0:03:15.5]} 12...
Rb8 {[%clk 0:03:06.4]} 13. g3 {[%clk 0:03:10.5]} 13... O-O {[%clk 0:03:05.8]}
14. Bg2 {[%clk 0:03:11.6]} 14... Be6 {[%clk 0:03:02.1]} 15. O-O {[%clk
0:03:09.7]} 15... g6 {[%clk 0:03:00.3]} 16. Qd3 {[%clk 0:03:08.5]} 16... Bg7
{[%clk 0:02:56.5]} 17. Rad1 {[%clk 0:03:05.8]} 17... a5 {[%clk 0:02:56.9]} 18.
Nde3 {[%clk 0:02:49.8]} 18... Nd4 {[%clk 0:02:56.7]} 19. Nxd4 {[%clk 0:02:48.7]}
19... exd4 {[%clk 0:02:57.5]} 20. Nc2 {[%clk 0:02:50.2]} 20... Qc7 {[%clk
0:02:54.2]} 21. b3 {[%clk 0:02:51]} 21... a4 {[%clk 0:02:48.6]} 22. Nxd4 {[%clk
0:02:51.8]} 22... Bd7 {[%clk 0:02:48.7]} 23. Nc2 {[%clk 0:02:35.4]} 23... Rb6
{[%clk 0:02:48.4]} 24. Ne3 {[%clk 0:02:34.5]} 24... Qc5 {[%clk 0:02:45.4]} 25.
Nd5 {[%clk 0:02:12.4]} 25... Ra6 {[%clk 0:02:46.2]} 26. Kh1 {[%clk 0:02:02.2]}
26... axb3 {[%clk 0:02:44.3]} 27. axb3 {[%clk 0:02:02.7]} 27... Re8 {[%clk
0:02:43.8]} 28. f4 {[%clk 0:02:02]} 28... Ra2 {[%clk 0:02:42]} 29. Rd2 {[%clk
0:02:00.4]} 29... Rea8 {[%clk 0:02:40.9]} 30. e5 {[%clk 0:01:47.8]} 30... Rxd2
{[%clk 0:02:35.4]} 31. Qxd2 {[%clk 0:01:48.2]} 31... Rd8 {[%clk 0:02:24.6]} 32.
Ne7+ {[%clk 0:01:38.2]} 32... Kf8 {[%clk 0:02:23.2]} 33. Qxd6 {[%clk 0:01:30.3]}
33... Qxd6 {[%clk 0:02:23.3]} 34. exd6 {[%clk 0:01:31]} 34... Bg4 {[%clk
0:02:21.6]} 35. c5 {[%clk 0:01:29.6]} 35... Bd4 {[%clk 0:02:16.5]} 36. Nc6
{[%clk 0:01:29.7]} 1-0

[Event "*** Titled Tuesday Blitz"]
[Site "Chess.com"]
[Date "2019.09.03"]
[Round "5"]
[White "Kumi29"]
[Black "Gordima"]
[Result "0-1"]
[WhiteElo "2569"]
[BlackElo "2807"]
[TimeControl "180+2"]
[EndTime "16:03:24 PDT"]
[Termination "Gordima won by checkmate"]

1. d4 {[%clk 0:03:01.9]} 1... Nf6 {[%clk 0:02:54.7]} 2. Bg5 {[%clk 0:03:02.4]}
2... Ne4 {[%clk 0:02:46.1]} 3. h4 {[%clk 0:03:03.1]} 3... c5 {[%clk 0:02:46.5]}
4. d5 {[%clk 0:03:03.8]} 4... Qb6 {[%clk 0:02:44.9]} 5. Nd2 {[%clk 0:03:04.5]}
5... Nxg5 {[%clk 0:02:39]} 6. hxg5 {[%clk 0:03:06.4]} 6... Qxb2 {[%clk
0:02:39.1]} 7. g6 {[%clk 0:03:07.9]} 7... fxg6 {[%clk 0:02:38.5]} 8. e3 {[%clk
0:03:07.5]} 8... d6 {[%clk 0:02:34]} 9. Bd3 {[%clk 0:03:08.3]} 9... Bf5 {[%clk
0:02:28.1]} 10. e4 {[%clk 0:03:02.6]} 10... Bg4 {[%clk 0:02:18.9]} 11. Qxg4
{[%clk 0:02:43.7]} 11... Qxa1+ {[%clk 0:02:19.6]} 12. Ke2 {[%clk 0:02:45.4]}
12... Nd7 {[%clk 0:02:04.1]} 13. Rxh7 {[%clk 0:02:28.9]} 13... Rxh7 {[%clk
0:02:04.2]} 14. Qxg6+ {[%clk 0:02:29]} 14... Kd8 {[%clk 0:02:05.8]} 15. Qxh7
{[%clk 0:02:29.9]} 15... Qxg1 {[%clk 0:02:07.1]} 16. Qh3 {[%clk 0:02:17.5]}
16... Qa1 {[%clk 0:01:41.9]} 17. Bb5 {[%clk 0:02:16.9]} 17... Nf6 {[%clk
0:01:38.3]} 18. Nc4 {[%clk 0:02:11.8]} 18... a6 {[%clk 0:01:27.6]} 19. Nb6
{[%clk 0:02:04.8]} 19... axb5 {[%clk 0:01:19.5]} 20. Nxa8 {[%clk 0:02:06.1]}
20... Qxa2 {[%clk 0:01:17.2]} 21. Nb6 {[%clk 0:02:07.1]} 21... Qxc2+ {[%clk
0:01:18.6]} 22. Ke1 {[%clk 0:02:06.4]} 22... Qxe4+ {[%clk 0:01:15.6]} 23. Kd2
{[%clk 0:02:01.4]} 23... Qg4 {[%clk 0:01:15.8]} 24. Qh8 {[%clk 0:01:57.6]} 24...
Ke8 {[%clk 0:01:11.4]} 25. Ke3 {[%clk 0:01:56.3]} 25... Qxg2 {[%clk 0:01:08.6]}
26. f3 {[%clk 0:01:55.8]} 26... Qg5+ {[%clk 0:01:08.5]} 27. f4 {[%clk
0:01:55.4]} 27... Nxd5+ {[%clk 0:01:09.7]} 28. Nxd5 {[%clk 0:01:55.9]} 28...
Qxd5 {[%clk 0:01:11.6]} 29. Kf2 {[%clk 0:01:53]} 29... c4 {[%clk 0:01:11.9]} 30.
Kg3 {[%clk 0:01:54.5]} 30... c3 {[%clk 0:01:12.7]} 31. Qh7 {[%clk 0:01:55.2]}
31... Qc6 {[%clk 0:01:08.9]} 32. Qg6+ {[%clk 0:01:53]} 32... Kd8 {[%clk
0:01:09.5]} 33. Qf7 {[%clk 0:01:52.9]} 33... c2 {[%clk 0:01:09.1]} 34. Qxf8+
{[%clk 0:01:54.4]} 34... Kd7 {[%clk 0:01:10.2]} 35. f5 {[%clk 0:01:54.5]} 35...
c1=Q {[%clk 0:01:09.1]} 36. f6 {[%clk 0:01:56.1]} 36... Qg5+ {[%clk 0:01:09.2]}
37. Kf2 {[%clk 0:01:56.7]} 37... Qcg2+ {[%clk 0:01:10.4]} 38. Ke1 {[%clk
0:01:57]} 38... Q5d2# {[%clk 0:01:11.8]} 0-1

[Event "*** Titled Tuesday Blitz"]
[Site "Chess.com"]
[Date "2019.09.03"]
[Round "5"]
[White "TomPolgar"]
[Black "ecwinslow"]
[Result "1-0"]
[WhiteElo "2307"]
[BlackElo "2025"]
[TimeControl "180+2"]
[EndTime "16:04:04 PDT"]
[Termination "TomPolgar won by resignation"]

1. e4 {[%clk 0:03:01.9]} 1... d6 {[%clk 0:02:58.8]} 2. d4 {[%clk 0:03:02.3]}
2... Nf6 {[%clk 0:02:59.8]} 3. Nc3 {[%clk 0:03:03.1]} 3... g6 {[%clk 0:03:01]}
4. f4 {[%clk 0:03:04]} 4... Bg7 {[%clk 0:03:00.7]} 5. Bd3 {[%clk 0:03:04.2]}
5... O-O {[%clk 0:02:56]} 6. Nf3 {[%clk 0:03:04.8]} 6... Na6 {[%clk 0:02:56.4]}
7. O-O {[%clk 0:02:42.4]} 7... c5 {[%clk 0:02:55.5]} 8. d5 {[%clk 0:02:42.9]}
8... Rb8 {[%clk 0:02:53.6]} 9. a4 {[%clk 0:02:29.9]} 9... Nb4 {[%clk 0:02:48.8]}
10. Bc4 {[%clk 0:02:27.6]} 10... b6 {[%clk 0:02:45.5]} 11. e5 {[%clk 0:01:52.3]}
11... Ne8 {[%clk 0:02:46]} 12. Re1 {[%clk 0:00:57.9]} 12... Bf5 {[%clk
0:02:42.1]} 13. Ne4 {[%clk 0:00:58.7]} 13... dxe5 {[%clk 0:02:30.5]} 14. fxe5
{[%clk 0:00:57.9]} 14... Nc7 {[%clk 0:02:27.5]} 15. d6 {[%clk 0:00:53.7]} 15...
exd6 {[%clk 0:02:21.8]} 16. Bg5 {[%clk 0:00:48]} 16... Qd7 {[%clk 0:02:01.4]}
17. exd6 {[%clk 0:00:46.3]} 17... Bxe4 {[%clk 0:01:54.5]} 18. dxc7 {[%clk
0:00:36.8]} 18... Qxd1 {[%clk 0:01:24.1]} 19. Raxd1 {[%clk 0:00:38.7]} 19...
Bxf3 {[%clk 0:01:11]} 20. cxb8=Q {[%clk 0:00:38.5]} 20... Rxb8 {[%clk
0:01:11.6]} 21. gxf3 {[%clk 0:00:38]} 21... Nxc2 {[%clk 0:01:12.6]} 22. Re7
{[%clk 0:00:35.4]} 22... Rf8 {[%clk 0:01:08.5]} 23. Rdd7 {[%clk 0:00:35.6]}
23... Bd4+ {[%clk 0:01:00.8]} 24. Kg2 {[%clk 0:00:33.3]} 24... h6 {[%clk
0:00:54.4]} 1-0

[Event "*** Titled Tuesday Blitz"]
[Site "Chess.com"]
[Date "2019.09.03"]
[Round "5"]
[White "FontVella8"]
[Black "HanSchut"]
[Result "1-0"]
[WhiteElo "2488"]
[BlackElo "2213"]
[TimeControl "180+2"]
[EndTime "16:04:08 PDT"]
[Termination "FontVella8 won by resignation"]

1. d4 {[%clk 0:03:01.9]} 1... Nf6 {[%clk 0:02:55.2]} 2. c4 {[%clk 0:03:03.4]}
2... g6 {[%clk 0:02:55.3]} 3. Nc3 {[%clk 0:03:04.9]} 3... d5 {[%clk 0:02:53.9]}
4. cxd5 {[%clk 0:03:06.8]} 4... Nxd5 {[%clk 0:02:54.2]} 5. e4 {[%clk 0:03:08.7]}
5... Nxc3 {[%clk 0:02:55.1]} 6. bxc3 {[%clk 0:03:10.6]} 6... Bg7 {[%clk
0:02:56.3]} 7. Qa4+ {[%clk 0:03:11.5]} 7... Bd7 {[%clk 0:02:52.5]} 8. Qa3 {[%clk
0:03:12.1]} 8... c5 {[%clk 0:02:49.6]} 9. Qxc5 {[%clk 0:03:12.1]} 9... O-O
{[%clk 0:02:49.1]} 10. Nf3 {[%clk 0:03:12.6]} 10... Bg4 {[%clk 0:02:48.6]} 11.
Be2 {[%clk 0:03:13.2]} 11... Nd7 {[%clk 0:02:48.8]} 12. Qa3 {[%clk 0:02:51.3]}
12... e5 {[%clk 0:02:47.2]} 13. d5 {[%clk 0:02:47.5]} 13... f5 {[%clk
0:02:42.1]} 14. h3 {[%clk 0:02:33.3]} 14... fxe4 {[%clk 0:02:23.7]} 15. hxg4
{[%clk 0:02:33.6]} 15... exf3 {[%clk 0:02:25.2]} 16. Bxf3 {[%clk 0:02:35.4]}
16... e4 {[%clk 0:02:21.9]} 17. Be2 {[%clk 0:02:31.4]} 17... Qf6 {[%clk
0:02:11.2]} 18. O-O {[%clk 0:02:26.7]} 18... Qxc3 {[%clk 0:02:10.2]} 19. Qxc3
{[%clk 0:02:16]} 19... Bxc3 {[%clk 0:02:12.1]} 20. Rb1 {[%clk 0:02:17.8]} 20...
b6 {[%clk 0:02:08.7]} 21. Bg5 {[%clk 0:02:16.7]} 21... Bd4 {[%clk 0:01:59.9]}
22. Bb5 {[%clk 0:02:15.1]} 22... Rf7 {[%clk 0:01:44.2]} 23. Rb4 {[%clk
0:02:15.2]} 23... Bc5 {[%clk 0:01:30.1]} 24. Rxe4 {[%clk 0:02:16.7]} 24... Raf8
{[%clk 0:01:29.4]} 25. Be3 {[%clk 0:02:17.9]} 25... Nf6 {[%clk 0:01:25.6]} 26.
Bxc5 {[%clk 0:02:17.4]} 26... bxc5 {[%clk 0:01:11.1]} 27. Rc4 {[%clk 0:02:18.4]}
27... Nxd5 {[%clk 0:00:30.1]} 28. Rxc5 {[%clk 0:02:19.2]} 28... Nb6 {[%clk
0:00:31.3]} 29. a4 {[%clk 0:02:15.9]} 29... Kg7 {[%clk 0:00:30]} 30. a5 {[%clk
0:02:15.9]} 30... Nd7 {[%clk 0:00:30.9]} 31. Rd5 {[%clk 0:02:13.3]} 31... Nf6
{[%clk 0:00:31.1]} 32. Rd4 {[%clk 0:02:14.5]} 32... Ng8 {[%clk 0:00:20.3]} 33.
f3 {[%clk 0:02:15]} 33... Re7 {[%clk 0:00:19.6]} 34. Rfd1 {[%clk 0:02:15.7]}
34... h6 {[%clk 0:00:20.3]} 35. Rd6 {[%clk 0:02:14.1]} 35... Rf6 {[%clk
0:00:20.7]} 36. Rd8 {[%clk 0:02:12.5]} 36... Rfe6 {[%clk 0:00:18.1]} 37. Bc4
{[%clk 0:02:11.3]} 37... Re1+ {[%clk 0:00:16.6]} 38. Rxe1 {[%clk 0:02:12.3]}
38... Rxe1+ {[%clk 0:00:18.5]} 39. Kf2 {[%clk 0:02:13.8]} 1-0

[Event "*** Titled Tuesday Blitz"]
[Site "Chess.com"]
[Date "2019.09.03"]
[Round "5"]
[White "adriangschnitzer"]
[Black "przemekpiotrowski"]
[Result "0-1"]
[WhiteElo "2534"]
[BlackElo "2399"]
[TimeControl "180+2"]
[EndTime "16:04:11 PDT"]
[Termination "przemekpiotrowski won by resignation"]

1. e4 {[%clk 0:02:52.5]} 1... c5 {[%clk 0:02:59.8]} 2. Nf3 {[%clk 0:02:50.9]}
2... Nc6 {[%clk 0:03:01]} 3. d4 {[%clk 0:02:51.9]} 3... cxd4 {[%clk 0:03:02.9]}
4. Nxd4 {[%clk 0:02:53.4]} 4... Nf6 {[%clk 0:03:04.4]} 5. Nc3 {[%clk 0:02:54.5]}
5... d6 {[%clk 0:03:06]} 6. Bg5 {[%clk 0:02:54.3]} 6... e6 {[%clk 0:03:07.4]} 7.
Qd2 {[%clk 0:02:55.2]} 7... a6 {[%clk 0:03:08.9]} 8. O-O-O {[%clk 0:02:55.6]}
8... Bd7 {[%clk 0:03:10.2]} 9. f4 {[%clk 0:02:55]} 9... b5 {[%clk 0:03:11.5]}
10. Bxf6 {[%clk 0:02:53.3]} 10... gxf6 {[%clk 0:03:11.9]} 11. Nxc6 {[%clk
0:02:48.7]} 11... Bxc6 {[%clk 0:03:13.8]} 12. Bd3 {[%clk 0:02:49.1]} 12... Qb6
{[%clk 0:03:13.4]} 13. h4 {[%clk 0:02:47.7]} 13... h5 {[%clk 0:03:14.3]} 14. Ne2
{[%clk 0:02:48.8]} 14... Qc5 {[%clk 0:03:09.4]} 15. f5 {[%clk 0:02:49.7]} 15...
Bh6 {[%clk 0:03:09.6]} 16. Nf4 {[%clk 0:02:37.2]} 16... e5 {[%clk 0:03:10.3]}
17. Kb1 {[%clk 0:02:36.9]} 17... Bxf4 {[%clk 0:03:10.2]} 18. Qe2 {[%clk
0:02:34.9]} 18... Qe3 {[%clk 0:03:10.9]} 19. Qf1 {[%clk 0:02:35.3]} 19... Rg8
{[%clk 0:03:04.4]} 20. a4 {[%clk 0:02:32.4]} 20... bxa4 {[%clk 0:02:54]} 21.
Bxa6 {[%clk 0:02:32.7]} 21... Ke7 {[%clk 0:02:52.7]} 22. Bb5 {[%clk 0:02:25.8]}
22... Bxb5 {[%clk 0:02:43.7]} 23. Qxb5 {[%clk 0:02:27.7]} 23... Rgb8 {[%clk
0:02:44.9]} 24. Qc4 {[%clk 0:02:24.2]} 24... Qb6 {[%clk 0:02:25.1]} 25. Qc3
{[%clk 0:02:07.8]} 25... Be3 {[%clk 0:02:17]} 26. Qa3 {[%clk 0:01:55.2]} 26...
Bc5 {[%clk 0:02:15]} 27. Qa2 {[%clk 0:01:55.4]} 27... Bd4 {[%clk 0:02:11.7]} 28.
Rxd4 {[%clk 0:01:50.4]} 28... Qxd4 {[%clk 0:02:12.5]} 29. Qa3 {[%clk 0:01:47.8]}
29... Qb4 {[%clk 0:02:12.3]} 30. Qa2 {[%clk 0:01:45]} 30... a3 {[%clk
0:02:13.2]} 31. b3 {[%clk 0:01:45.6]} 31... Qc3 {[%clk 0:02:14.3]} 32. Rd1
{[%clk 0:01:44.9]} 32... Ra7 {[%clk 0:02:13.9]} 33. Kc1 {[%clk 0:01:41.4]} 33...
Rc7 {[%clk 0:01:48.5]} 34. g4 {[%clk 0:01:22.9]} 34... hxg4 {[%clk 0:01:44.4]}
35. h5 {[%clk 0:01:07.2]} 35... Rxb3 {[%clk 0:01:44.6]} 36. h6 {[%clk
0:00:58.3]} 36... Rb2 {[%clk 0:01:35.8]} 0-1

[Event "*** Titled Tuesday Blitz"]
[Site "Chess.com"]
[Date "2019.09.03"]
[Round "5"]
[White "JAN2404"]
[Black "Iustin106"]
[Result "0-1"]
[WhiteElo "1691"]
[BlackElo "2495"]
[TimeControl "180+2"]
[EndTime "16:04:13 PDT"]
[Termination "Iustin106 won by resignation"]

1. c4 {[%clk 0:03:01.9]} 1... e5 {[%clk 0:02:55.8]} 2. Nc3 {[%clk 0:03:01.4]}
2... Nf6 {[%clk 0:02:57]} 3. Nf3 {[%clk 0:03:02.7]} 3... Nc6 {[%clk 0:02:57.3]}
4. g3 {[%clk 0:03:04.1]} 4... d5 {[%clk 0:02:58.4]} 5. cxd5 {[%clk 0:03:04.2]}
5... Nxd5 {[%clk 0:03:00.3]} 6. Bg2 {[%clk 0:03:05.3]} 6... Nb6 {[%clk
0:03:01.2]} 7. O-O {[%clk 0:03:03.5]} 7... Be7 {[%clk 0:03:02.4]} 8. d3 {[%clk
0:03:03.1]} 8... O-O {[%clk 0:03:03]} 9. a3 {[%clk 0:02:54.3]} 9... Be6 {[%clk
0:03:03.5]} 10. b4 {[%clk 0:02:54]} 10... a5 {[%clk 0:02:56.8]} 11. b5 {[%clk
0:02:47]} 11... Nd4 {[%clk 0:02:54.7]} 12. Nxe5 {[%clk 0:02:41.8]} 12... Bf6
{[%clk 0:02:22.2]} 13. f4 {[%clk 0:01:51.3]} 13... Nb3 {[%clk 0:02:21.2]} 14.
Rb1 {[%clk 0:01:49]} 14... Qd4+ {[%clk 0:01:49.8]} 15. e3 {[%clk 0:01:47]} 15...
Qxc3 {[%clk 0:01:51.1]} 16. Bb2 {[%clk 0:01:47.6]} 16... Qc5 {[%clk 0:01:46.2]}
17. Bd4 {[%clk 0:01:46.6]} 17... Nxd4 {[%clk 0:01:46.6]} 18. exd4 {[%clk
0:01:43.1]} 18... Qxd4+ {[%clk 0:01:48.5]} 19. Kh1 {[%clk 0:01:42.4]} 19... Bd5
{[%clk 0:01:47.1]} 20. Nf3 {[%clk 0:01:28.1]} 20... Qc5 {[%clk 0:01:35.3]} 21.
d4 {[%clk 0:01:26.8]} 21... Qd6 {[%clk 0:01:33.5]} 22. Ne5 {[%clk 0:01:17.7]}
22... Bxg2+ {[%clk 0:01:31.7]} 23. Kxg2 {[%clk 0:01:19.1]} 23... Rad8 {[%clk
0:01:30.8]} 24. Qb3 {[%clk 0:01:01.9]} 24... Qxd4 {[%clk 0:01:25.7]} 25. Rbd1
{[%clk 0:01:01.5]} 25... Qe4+ {[%clk 0:01:24.6]} 26. Kg1 {[%clk 0:01:02.3]}
26... Rxd1 {[%clk 0:01:15.7]} 27. Rxd1 {[%clk 0:00:51.5]} 27... Bxe5 {[%clk
0:01:13.4]} 28. fxe5 {[%clk 0:00:53.1]} 28... Qxe5 {[%clk 0:01:14.6]} 29. Rf1
{[%clk 0:00:46]} 29... h6 {[%clk 0:01:13.6]} 30. a4 {[%clk 0:00:46]} 30... Qc5+
{[%clk 0:01:13.5]} 31. Kh1 {[%clk 0:00:44.6]} 31... Qd5+ {[%clk 0:01:14.9]} 32.
Kg1 {[%clk 0:00:45.3]} 32... Qxb3 {[%clk 0:01:14.7]} 0-1

[Event "*** Titled Tuesday Blitz"]
[Site "Chess.com"]
[Date "2019.09.03"]
[Round "5"]
[White "Bishops83"]
[Black "xberli"]
[Result "0-1"]
[WhiteElo "2212"]
[BlackElo "2457"]
[TimeControl "180+2"]
[EndTime "16:04:15 PDT"]
[Termination "xberli won by resignation"]

1. e4 {[%clk 0:03:01.9]} 1... c5 {[%clk 0:03:00.5]} 2. Nc3 {[%clk 0:03:02]} 2...
Nc6 {[%clk 0:02:59.5]} 3. Bb5 {[%clk 0:03:02]} 3... g6 {[%clk 0:02:57.5]} 4.
Bxc6 {[%clk 0:03:01.8]} 4... dxc6 {[%clk 0:02:58.5]} 5. f4 {[%clk 0:03:03.2]}
5... Bg7 {[%clk 0:02:59.6]} 6. Nf3 {[%clk 0:03:03.8]} 6... Bg4 {[%clk
0:03:00.1]} 7. h3 {[%clk 0:03:03.2]} 7... Bxf3 {[%clk 0:03:00.9]} 8. Qxf3 {[%clk
0:03:05]} 8... e5 {[%clk 0:03:01.7]} 9. f5 {[%clk 0:02:45.7]} 9... Nf6 {[%clk
0:02:56.7]} 10. d3 {[%clk 0:02:31.7]} 10... O-O {[%clk 0:02:45.3]} 11. O-O
{[%clk 0:02:31.7]} 11... Nh5 {[%clk 0:02:44.2]} 12. Be3 {[%clk 0:02:25.7]} 12...
b6 {[%clk 0:02:41.2]} 13. a4 {[%clk 0:02:25.8]} 13... Qd6 {[%clk 0:02:35.8]} 14.
a5 {[%clk 0:02:16.2]} 14... b5 {[%clk 0:02:34.7]} 15. a6 {[%clk 0:02:16]} 15...
Nf4 {[%clk 0:02:22.7]} 16. Bxf4 {[%clk 0:01:55.7]} 16... exf4 {[%clk 0:02:24.6]}
17. Qxf4 {[%clk 0:01:56.9]} 17... Qxf4 {[%clk 0:02:19.3]} 18. Rxf4 {[%clk
0:01:58]} 18... Be5 {[%clk 0:02:20]} 19. Rf3 {[%clk 0:01:55.3]} 19... Rab8
{[%clk 0:02:20.1]} 20. g4 {[%clk 0:01:35.2]} 20... Rb6 {[%clk 0:02:19.1]} 21. g5
{[%clk 0:01:31.8]} 21... Rd8 {[%clk 0:02:17]} 22. f6 {[%clk 0:01:26.1]} 22... h6
{[%clk 0:02:04.9]} 23. h4 {[%clk 0:01:25.9]} 23... b4 {[%clk 0:02:03.4]} 24. Nd1
{[%clk 0:01:25.1]} 24... c4 {[%clk 0:02:04.4]} 25. Ra5 {[%clk 0:01:21.6]} 25...
c5 {[%clk 0:02:03]} 26. Kg2 {[%clk 0:01:18.1]} 26... b3 {[%clk 0:01:52.6]} 27.
cxb3 {[%clk 0:01:06.8]} 27... cxb3 {[%clk 0:01:42.2]} 28. Rxc5 {[%clk
0:01:06.3]} 28... Bd4 {[%clk 0:01:43.4]} 29. Ra5 {[%clk 0:00:58]} 29... Rc6
{[%clk 0:01:43.7]} 30. Ne3 {[%clk 0:00:45.7]} 30... Rc2+ {[%clk 0:01:34.5]} 31.
Kg3 {[%clk 0:00:40.3]} 31... Bxe3 {[%clk 0:01:29.8]} 32. Rxe3 {[%clk 0:00:40.5]}
32... Rxb2 {[%clk 0:01:31.2]} 33. Rb5 {[%clk 0:00:41.2]} 33... Rb1 {[%clk
0:01:31]} 34. e5 {[%clk 0:00:39]} 34... b2 {[%clk 0:01:30.3]} 35. Kf3 {[%clk
0:00:36.8]} 35... Rf1+ {[%clk 0:01:30.2]} 0-1